[Event "*** Titled Tuesday Blitz"]
[Site "Chess.com"]
[Date "2020.04.14"]
[Round "8"]
[White "AsaHoffmann"]
[Black "Alexandercs432"]
[Result "0-1"]
[WhiteElo "2283"]
[BlackElo "2127"]
[TimeControl "180+1"]
[EndTime "11:30:25 PDT"]
[Termination "Alexandercs432 won on time"]

1. d4 {[%clk 0:02:58.4]} 1... d5 {[%clk 0:02:58.8]} 2. Bg5 {[%clk 0:02:57.2]}
2... Nf6 {[%clk 0:02:49.5]} 3. Nd2 {[%clk 0:02:56.1]} 3... c5 {[%clk 0:02:40.9]}
4. e3 {[%clk 0:02:54.9]} 4... Qb6 {[%clk 0:02:36.5]} 5. Ngf3 {[%clk 0:02:41.6]}
5... cxd4 {[%clk 0:02:33.6]} 6. exd4 {[%clk 0:02:39.4]} 6... Bf5 {[%clk
0:02:30.8]} 7. Rb1 {[%clk 0:02:27.7]} 7... Nc6 {[%clk 0:02:28.2]} 8. Nb3 {[%clk
0:02:22.3]} 8... Nb4 {[%clk 0:02:18.1]} 9. Bd3 {[%clk 0:02:17.7]} 9... Nxd3+
{[%clk 0:02:16.9]} 10. cxd3 {[%clk 0:02:17]} 10... e6 {[%clk 0:02:15.8]} 11. O-O
{[%clk 0:02:13.7]} 11... Be7 {[%clk 0:02:05.4]} 12. h3 {[%clk 0:02:12.6]} 12...
Qb5 {[%clk 0:01:58.2]} 13. Nc1 {[%clk 0:02:05.2]} 13... h6 {[%clk 0:01:55.3]}
14. Bh4 {[%clk 0:02:03.8]} 14... O-O {[%clk 0:01:52.6]} 15. Re1 {[%clk
0:02:03.3]} 15... g5 {[%clk 0:01:36.9]} 16. Bg3 {[%clk 0:02:02.2]} 16... Qb6
{[%clk 0:01:33.4]} 17. a3 {[%clk 0:01:55.6]} 17... Bxa3 {[%clk 0:01:22.2]} 18.
Ne2 {[%clk 0:01:45.8]} 18... Bb4 {[%clk 0:01:14.9]} 19. Nc3 {[%clk 0:01:45.1]}
19... Rac8 {[%clk 0:01:12]} 20. Qa4 {[%clk 0:01:36.7]} 20... Bxd3 {[%clk
0:00:57.2]} 21. Rbc1 {[%clk 0:01:35.2]} 21... Bf5 {[%clk 0:00:52.2]} 22. Be5
{[%clk 0:01:31.2]} 22... Ne4 {[%clk 0:00:44.8]} 23. Re3 {[%clk 0:01:20.2]} 23...
f6 {[%clk 0:00:37.6]} 24. Bh2 {[%clk 0:01:18.9]} 24... Nxf2 {[%clk 0:00:20.8]}
25. Kxf2 {[%clk 0:01:13.3]} 25... Bxc3 {[%clk 0:00:17.9]} 26. bxc3 {[%clk
0:01:09.3]} 26... Qb2+ {[%clk 0:00:17.1]} 27. Re2 {[%clk 0:01:00.5]} 27... Qxc1
{[%clk 0:00:16.6]} 28. Qxa7 {[%clk 0:00:58.8]} 28... Bd3 {[%clk 0:00:13.1]} 29.
Rd2 {[%clk 0:00:56.4]} 29... Qf1+ {[%clk 0:00:08.3]} 30. Kg3 {[%clk 0:00:54.8]}
30... Rxc3 {[%clk 0:00:07.5]} 31. Qb6 {[%clk 0:00:49.2]} 31... Bf5 {[%clk
0:00:04.2]} 32. Rf2 {[%clk 0:00:41.8]} 32... Qe1 {[%clk 0:00:04.3]} 33. Qd6
{[%clk 0:00:38.3]} 33... Rc1 {[%clk 0:00:03.4]} 34. h4 {[%clk 0:00:36.6]} 34...
Rc3 {[%clk 0:00:02.7]} 35. hxg5 {[%clk 0:00:35.7]} 35... hxg5 {[%clk 0:00:03.2]}
36. Qe7 {[%clk 0:00:29.7]} 36... Qa1 {[%clk 0:00:04.1]} 37. Qxb7 {[%clk
0:00:21.8]} 37... Qa3 {[%clk 0:00:04.4]} 38. Qb2 {[%clk 0:00:17.2]} 38... g4
{[%clk 0:00:04.3]} 39. Qxa3 {[%clk 0:00:13.4]} 39... Rxa3 {[%clk 0:00:05.2]} 40.
Kf4 {[%clk 0:00:13]} 40... gxf3 {[%clk 0:00:05.3]} 41. gxf3 {[%clk 0:00:12.8]}
41... Rc8 {[%clk 0:00:04.3]} 42. Bg3 {[%clk 0:00:11.2]} 42... Kf7 {[%clk
0:00:04.8]} 43. Bh4 {[%clk 0:00:10.8]} 43... Rg8 {[%clk 0:00:04.9]} 44. Rb2
{[%clk 0:00:09.3]} 44... Ra7 {[%clk 0:00:04.3]} 45. Bg3 {[%clk 0:00:07.4]} 45...
Rg7 {[%clk 0:00:04]} 46. Rb8 {[%clk 0:00:05.6]} 46... Rh7 {[%clk 0:00:03.7]} 47.
Ke3 {[%clk 0:00:03.4]} 47... Re7 {[%clk 0:00:04.1]} 48. Bd6 {[%clk 0:00:02.1]}
48... Rd7 {[%clk 0:00:04.6]} 49. Bc5 {[%clk 0:00:01.9]} 49... Rg7 {[%clk
0:00:04.8]} 50. Kf4 {[%clk 0:00:01.3]} 50... Rg8 {[%clk 0:00:05.2]} 0-1

[Event "*** Titled Tuesday Blitz"]
[Site "Chess.com"]
[Date "2020.04.14"]
[Round "8"]
[White "platy3"]
[Black "BilodeauA"]
[Result "1/2-1/2"]
[WhiteElo "2758"]
[BlackElo "2907"]
[TimeControl "180+1"]
[EndTime "11:30:26 PDT"]
[Termination "Game drawn by repetition"]

1. e4 {[%clk 0:03:00.9]} 1... e5 {[%clk 0:02:59]} 2. Nf3 {[%clk 0:03:01]} 2...
Nc6 {[%clk 0:02:59.6]} 3. Bb5 {[%clk 0:03:01.4]} 3... a6 {[%clk 0:02:59.9]} 4.
Ba4 {[%clk 0:03:02]} 4... d6 {[%clk 0:03:00.1]} 5. O-O {[%clk 0:03:01.2]} 5...
Bd7 {[%clk 0:03:00.7]} 6. d4 {[%clk 0:03:01]} 6... b5 {[%clk 0:02:58]} 7. Bb3
{[%clk 0:03:00.6]} 7... exd4 {[%clk 0:02:52.2]} 8. c3 {[%clk 0:02:31.8]} 8...
dxc3 {[%clk 0:02:52.3]} 9. Nxc3 {[%clk 0:02:31.8]} 9... Nf6 {[%clk 0:02:53]} 10.
Ng5 {[%clk 0:02:25.5]} 10... Ne5 {[%clk 0:02:53.3]} 11. f4 {[%clk 0:02:25.7]}
11... Nc4 {[%clk 0:02:53.8]} 12. Qe2 {[%clk 0:02:09]} 12... h6 {[%clk
0:02:48.9]} 13. e5 {[%clk 0:02:02]} 13... dxe5 {[%clk 0:02:45.6]} 14. fxe5
{[%clk 0:02:01.8]} 14... Bc5+ {[%clk 0:02:43]} 15. Kh1 {[%clk 0:01:55]} 15...
Bg4 {[%clk 0:01:25.8]} 16. Qe1 {[%clk 0:01:41]} 16... hxg5 {[%clk 0:01:26.4]}
17. exf6+ {[%clk 0:01:40.4]} 17... Be6 {[%clk 0:01:26.1]} 18. fxg7 {[%clk
0:01:07.4]} 18... Rg8 {[%clk 0:01:25.9]} 19. Qe4 {[%clk 0:00:55]} 19... Kd7
{[%clk 0:00:59]} 20. Rd1+ {[%clk 0:00:34]} 20... Nd6 {[%clk 0:00:57.8]} 21.
Bxe6+ {[%clk 0:00:31.5]} 21... fxe6 {[%clk 0:00:58.7]} 22. Qe5 {[%clk
0:00:30.4]} 22... Bb4 {[%clk 0:00:29.1]} 23. Ne4 {[%clk 0:00:30.4]} 23... Qe7
{[%clk 0:00:23.2]} 24. Nf6+ {[%clk 0:00:26.2]} 24... Kc6 {[%clk 0:00:23.6]} 25.
Nd5 {[%clk 0:00:17.8]} 25... Qxg7 {[%clk 0:00:15.2]} 26. Nxb4+ {[%clk
0:00:17.8]} 26... Kb7 {[%clk 0:00:15.9]} 27. Qxg7 {[%clk 0:00:18.1]} 27... Rxg7
{[%clk 0:00:16.8]} 28. Nd3 {[%clk 0:00:18.4]} 28... Rh8 {[%clk 0:00:16.7]} 29.
Nc5+ {[%clk 0:00:17.1]} 29... Kc6 {[%clk 0:00:15]} 30. Nxe6 {[%clk 0:00:17]}
30... Rgh7 {[%clk 0:00:15.8]} 31. h3 {[%clk 0:00:15.5]} 31... g4 {[%clk
0:00:16.4]} 32. Ng5 {[%clk 0:00:14.1]} 32... Rh5 {[%clk 0:00:17.1]} 33. Bf4
{[%clk 0:00:12.9]} 33... Nf5 {[%clk 0:00:15.8]} 34. Rac1+ {[%clk 0:00:12.6]}
34... Kb6 {[%clk 0:00:16.4]} 35. Bxc7+ {[%clk 0:00:11.8]} 35... Kb7 {[%clk
0:00:16.9]} 36. Bf4 {[%clk 0:00:09.7]} 36... gxh3 {[%clk 0:00:16.5]} 37. gxh3
{[%clk 0:00:09.9]} 37... Rh4 {[%clk 0:00:16.2]} 38. Rf1 {[%clk 0:00:07.2]} 38...
Nd4 {[%clk 0:00:12.3]} 39. Rc7+ {[%clk 0:00:04.3]} 39... Kb6 {[%clk 0:00:12.4]}
40. Rd7 {[%clk 0:00:04.5]} 40... Ne2 {[%clk 0:00:11.7]} 41. Be3+ {[%clk
0:00:04.9]} 41... Kc6 {[%clk 0:00:12.2]} 42. Rff7 {[%clk 0:00:03.8]} 42... Re8
{[%clk 0:00:06.6]} 43. Rc7+ {[%clk 0:00:03.9]} 43... Kd5 {[%clk 0:00:07.1]} 44.
Rfd7+ {[%clk 0:00:04.5]} 44... Ke5 {[%clk 0:00:07.7]} 45. Nf3+ {[%clk
0:00:04.9]} 45... Ke4 {[%clk 0:00:07.7]} 46. Nxh4 {[%clk 0:00:05]} 46... Kxe3
{[%clk 0:00:07.6]} 47. Re7+ {[%clk 0:00:05.4]} 47... Kf2 {[%clk 0:00:08.2]} 48.
Rxe8 {[%clk 0:00:04.5]} 48... Ng3+ {[%clk 0:00:08.7]} 49. Kh2 {[%clk 0:00:02.1]}
49... Nf1+ {[%clk 0:00:09.3]} 50. Kh1 {[%clk 0:00:02.6]} 50... Ng3+ {[%clk
0:00:10.2]} 51. Kh2 {[%clk 0:00:03.1]} 51... Nf1+ {[%clk 0:00:11.1]} 52. Kh1
{[%clk 0:00:03.7]} 52... Ng3+ {[%clk 0:00:12]} 1/2-1/2

[Event "*** Titled Tuesday Blitz"]
[Site "Chess.com"]
[Date "2020.04.14"]
[Round "8"]
[White "dmvlad"]
[Black "PchelkinVK"]
[Result "1-0"]
[WhiteElo "2295"]
[BlackElo "2425"]
[TimeControl "180+1"]
[EndTime "11:30:26 PDT"]
[Termination "dmvlad won on time"]

1. e4 {[%clk 0:03:00.9]} 1... e6 {[%clk 0:02:59.6]} 2. d4 {[%clk 0:03:00.4]}
2... d5 {[%clk 0:02:59.8]} 3. Nc3 {[%clk 0:03:01]} 3... Nf6 {[%clk 0:02:59.2]}
4. Bg5 {[%clk 0:02:59.1]} 4... Bb4 {[%clk 0:02:52.7]} 5. exd5 {[%clk 0:02:07.5]}
5... Qxd5 {[%clk 0:02:51.5]} 6. Bxf6 {[%clk 0:02:06]} 6... gxf6 {[%clk
0:02:52.4]} 7. Qd2 {[%clk 0:02:00.9]} 7... Qa5 {[%clk 0:02:23.6]} 8. a3 {[%clk
0:01:59]} 8... Bxc3 {[%clk 0:02:22.7]} 9. Qxc3 {[%clk 0:01:59.3]} 9... Qxc3+
{[%clk 0:02:22.4]} 10. bxc3 {[%clk 0:01:59.8]} 10... Nd7 {[%clk 0:02:17.3]} 11.
g3 {[%clk 0:01:52.8]} 11... Nb6 {[%clk 0:02:15.2]} 12. Bg2 {[%clk 0:01:52.4]}
12... Rb8 {[%clk 0:02:08.4]} 13. Ne2 {[%clk 0:01:48.3]} 13... Bd7 {[%clk
0:02:08.1]} 14. O-O {[%clk 0:01:15]} 14... Bb5 {[%clk 0:02:07.1]} 15. Rfe1
{[%clk 0:01:14.4]} 15... Na4 {[%clk 0:02:05.9]} 16. Nf4 {[%clk 0:00:42.3]} 16...
Nxc3 {[%clk 0:01:52.7]} 17. d5 {[%clk 0:00:29.4]} 17... e5 {[%clk 0:01:43.4]}
18. Nh5 {[%clk 0:00:28.8]} 18... Ne2+ {[%clk 0:01:29.2]} 19. Kh1 {[%clk
0:00:28.5]} 19... Ke7 {[%clk 0:01:25.6]} 20. Rab1 {[%clk 0:00:20.4]} 20... Ba6
{[%clk 0:01:15.5]} 21. f4 {[%clk 0:00:20.6]} 21... Kd6 {[%clk 0:00:36.4]} 22.
Nxf6 {[%clk 0:00:17.5]} 22... exf4 {[%clk 0:00:35.1]} 23. Ne4+ {[%clk
0:00:15.1]} 23... Kd7 {[%clk 0:00:30.1]} 24. Nc5+ {[%clk 0:00:14.5]} 24... Kd6
{[%clk 0:00:25.4]} 25. Ne4+ {[%clk 0:00:11.1]} 25... Ke7 {[%clk 0:00:20.9]} 26.
Nc3 {[%clk 0:00:10.2]} 26... fxg3 {[%clk 0:00:17.9]} 27. Nxe2 {[%clk 0:00:09.2]}
27... gxh2 {[%clk 0:00:16.9]} 28. Nf4+ {[%clk 0:00:08.6]} 28... Kf6 {[%clk
0:00:16.3]} 29. Kxh2 {[%clk 0:00:08.1]} 29... Rbe8 {[%clk 0:00:16.4]} 30. Rxe8
{[%clk 0:00:06.1]} 30... Rxe8 {[%clk 0:00:15.7]} 31. Kg3 {[%clk 0:00:07]} 31...
Re3+ {[%clk 0:00:14.9]} 32. Kf2 {[%clk 0:00:07.1]} 32... Rxa3 {[%clk 0:00:15.8]}
33. Be4 {[%clk 0:00:07.2]} 33... Ra4 {[%clk 0:00:14.8]} 34. Ke3 {[%clk
0:00:06.2]} 34... Ke5 {[%clk 0:00:13.4]} 35. Nd3+ {[%clk 0:00:06.3]} 35... Bxd3
{[%clk 0:00:13.1]} 36. cxd3 {[%clk 0:00:06.9]} 36... f5 {[%clk 0:00:12.8]} 37.
Bf3 {[%clk 0:00:07.1]} 37... f4+ {[%clk 0:00:12.9]} 38. Kd2 {[%clk 0:00:07.4]}
38... Kd4 {[%clk 0:00:10.3]} 39. Be4 {[%clk 0:00:07.6]} 39... Ra2+ {[%clk
0:00:09.7]} 40. Kc1 {[%clk 0:00:08]} 40... b6 {[%clk 0:00:03.7]} 41. Rb4+ {[%clk
0:00:07.7]} 41... Ke3 {[%clk 0:00:03.5]} 42. Rc4 {[%clk 0:00:05.5]} 42... f3
{[%clk 0:00:02.9]} 43. Rxc7 {[%clk 0:00:05.3]} 43... f2 {[%clk 0:00:02.2]} 44.
Rf7 {[%clk 0:00:05.7]} 44... Ra1+ {[%clk 0:00:02.1]} 45. Kb2 {[%clk 0:00:05.3]}
45... f1=Q {[%clk 0:00:03]} 46. Rxf1 {[%clk 0:00:05.4]} 46... Rxf1 {[%clk
0:00:01.2]} 47. Bxh7 {[%clk 0:00:05.6]} 1-0

[Event "*** Titled Tuesday Blitz"]
[Site "Chess.com"]
[Date "2020.04.14"]
[Round "8"]
[White "littleozy"]
[Black "Eloist"]
[Result "1-0"]
[WhiteElo "2411"]
[BlackElo "2256"]
[TimeControl "180+1"]
[EndTime "11:30:26 PDT"]
[Termination "littleozy won on time"]

1. a3 {[%clk 0:03:00.9]} 1... e5 {[%clk 0:02:57.1]} 2. b4 {[%clk 0:02:59.8]}
2... d5 {[%clk 0:02:56.7]} 3. Bb2 {[%clk 0:02:59.9]} 3... Bd6 {[%clk 0:02:56.6]}
4. e3 {[%clk 0:03:00.5]} 4... Nf6 {[%clk 0:02:55.6]} 5. Nf3 {[%clk 0:03:00.4]}
5... Nbd7 {[%clk 0:02:51.3]} 6. c4 {[%clk 0:03:00.5]} 6... c6 {[%clk 0:02:50.3]}
7. Be2 {[%clk 0:02:58.6]} 7... O-O {[%clk 0:02:49.1]} 8. O-O {[%clk 0:02:59]}
8... Qe7 {[%clk 0:02:47.3]} 9. d3 {[%clk 0:02:59.3]} 9... Re8 {[%clk 0:02:45.2]}
10. Nc3 {[%clk 0:02:59.2]} 10... a6 {[%clk 0:02:38.5]} 11. Qb3 {[%clk
0:02:49.9]} 11... dxc4 {[%clk 0:02:34.9]} 12. Qxc4 {[%clk 0:02:48.3]} 12... Nf8
{[%clk 0:02:24.7]} 13. Ne4 {[%clk 0:02:36.3]} 13... Nxe4 {[%clk 0:02:19.2]} 14.
Qxe4 {[%clk 0:02:37.2]} 14... f5 {[%clk 0:02:15.5]} 15. Qh4 {[%clk 0:02:34.2]}
15... Qxh4 {[%clk 0:02:08.8]} 16. Nxh4 {[%clk 0:02:35.1]} 16... Be6 {[%clk
0:01:49.8]} 17. Rac1 {[%clk 0:02:27.1]} 17... Rad8 {[%clk 0:01:49]} 18. Nf3
{[%clk 0:02:25.6]} 18... Nd7 {[%clk 0:01:21.5]} 19. Bd1 {[%clk 0:02:20.4]} 19...
h6 {[%clk 0:01:17.7]} 20. Nd2 {[%clk 0:02:14.4]} 20... Be7 {[%clk 0:00:59.3]}
21. Bb3 {[%clk 0:02:07.2]} 21... Bxb3 {[%clk 0:00:47.4]} 22. Nxb3 {[%clk
0:02:08.1]} 22... Bd6 {[%clk 0:00:27]} 23. Rfd1 {[%clk 0:02:04.5]} 23... Nb6
{[%clk 0:00:24.5]} 24. Nc5 {[%clk 0:01:51.3]} 24... Re7 {[%clk 0:00:22.7]} 25.
Kf1 {[%clk 0:01:39.5]} 25... Kf7 {[%clk 0:00:21.7]} 26. Ke2 {[%clk 0:01:39]}
26... Bxc5 {[%clk 0:00:18.2]} 27. bxc5 {[%clk 0:01:34.1]} 27... Nd5 {[%clk
0:00:16.4]} 28. Rc4 {[%clk 0:01:32.3]} 28... Ke6 {[%clk 0:00:16.3]} 29. Rb1
{[%clk 0:01:32.1]} 29... Rdd7 {[%clk 0:00:15]} 30. Bc1 {[%clk 0:01:26.6]} 30...
Nf6 {[%clk 0:00:14.5]} 31. Bd2 {[%clk 0:01:17]} 31... e4 {[%clk 0:00:13.3]} 32.
d4 {[%clk 0:01:08.1]} 32... Nd5 {[%clk 0:00:12.7]} 33. f3 {[%clk 0:01:03.2]}
33... g5 {[%clk 0:00:12.2]} 34. Rf1 {[%clk 0:00:58.8]} 34... exf3+ {[%clk
0:00:10.7]} 35. Rxf3 {[%clk 0:00:52.7]} 35... Kf6 {[%clk 0:00:10.7]} 36. Kd3
{[%clk 0:00:50.3]} 36... Kg6 {[%clk 0:00:10.6]} 37. Rc1 {[%clk 0:00:49.7]} 37...
Re6 {[%clk 0:00:10.1]} 38. Rcf1 {[%clk 0:00:49.3]} 38... Rf7 {[%clk 0:00:09.4]}
39. g4 {[%clk 0:00:47.2]} 39... Ne7 {[%clk 0:00:06.4]} 40. gxf5+ {[%clk
0:00:45.6]} 40... Rxf5 {[%clk 0:00:07.3]} 41. e4 {[%clk 0:00:41.5]} 41... Rxf3+
{[%clk 0:00:06.9]} 42. Rxf3 {[%clk 0:00:42.4]} 42... Ng8 {[%clk 0:00:06.5]} 43.
d5 {[%clk 0:00:40.4]} 43... cxd5 {[%clk 0:00:05.9]} 44. exd5 {[%clk 0:00:41.3]}
44... Rf6 {[%clk 0:00:05.8]} 45. Re3 {[%clk 0:00:34.4]} 45... Kf7 {[%clk
0:00:04.6]} 46. Bc3 {[%clk 0:00:25.5]} 46... Rf5 {[%clk 0:00:04]} 47. d6 {[%clk
0:00:24.2]} 47... Nf6 {[%clk 0:00:03.1]} 48. Re7+ {[%clk 0:00:22.6]} 48... Kg6
{[%clk 0:00:03.4]} 49. Bxf6 {[%clk 0:00:21.9]} 49... Kxf6 {[%clk 0:00:03]} 50.
Kd4 {[%clk 0:00:21.7]} 50... Rf4+ {[%clk 0:00:02.3]} 51. Re4 {[%clk 0:00:18.7]}
51... Rxe4+ {[%clk 0:00:01.2]} 52. Kxe4 {[%clk 0:00:19.6]} 52... Ke6 {[%clk
0:00:01.3]} 53. a4 {[%clk 0:00:18.5]} 1-0

[Event "*** Titled Tuesday Blitz"]
[Site "Chess.com"]
[Date "2020.04.14"]
[Round "8"]
[White "Justinz"]
[Black "BlackWidow515"]
[Result "1-0"]
[WhiteElo "2271"]
[BlackElo "1986"]
[TimeControl "180+1"]
[EndTime "11:30:26 PDT"]
[Termination "Justinz won by resignation"]

1. e4 {[%clk 0:03:00.9]} 1... e5 {[%clk 0:02:56.9]} 2. Nf3 {[%clk 0:02:59]} 2...
Nc6 {[%clk 0:02:55.9]} 3. Nc3 {[%clk 0:02:56.6]} 3... d6 {[%clk 0:02:50.6]} 4.
d4 {[%clk 0:02:54.9]} 4... exd4 {[%clk 0:02:51.2]} 5. Nxd4 {[%clk 0:02:53.8]}
5... Nf6 {[%clk 0:02:51.5]} 6. Nde2 {[%clk 0:02:52.2]} 6... Be7 {[%clk
0:02:50.9]} 7. g3 {[%clk 0:02:52]} 7... O-O {[%clk 0:02:49.8]} 8. Bg2 {[%clk
0:02:51.6]} 8... Be6 {[%clk 0:02:48.2]} 9. O-O {[%clk 0:02:45.8]} 9... Nd7
{[%clk 0:02:38.9]} 10. b3 {[%clk 0:02:38]} 10... f5 {[%clk 0:02:38]} 11. Nf4
{[%clk 0:02:32.7]} 11... Bf7 {[%clk 0:02:33.8]} 12. exf5 {[%clk 0:02:30.8]}
12... Bf6 {[%clk 0:02:34.3]} 13. Bb2 {[%clk 0:02:29.3]} 13... Nde5 {[%clk
0:02:32]} 14. Re1 {[%clk 0:02:24.4]} 14... Qd7 {[%clk 0:02:32]} 15. Ne6 {[%clk
0:02:22.6]} 15... Rfe8 {[%clk 0:02:26.9]} 16. Bh3 {[%clk 0:02:17.2]} 16... Nd8
{[%clk 0:02:18.1]} 17. f4 {[%clk 0:02:11.7]} 17... Nec6 {[%clk 0:02:17.4]} 18.
Qd5 {[%clk 0:02:11.3]} 18... Kh8 {[%clk 0:02:10.6]} 19. Rad1 {[%clk 0:02:08.3]}
19... Ne7 {[%clk 0:02:10.2]} 20. Qd3 {[%clk 0:02:02]} 20... Nxf5 {[%clk
0:02:07.9]} 21. Bxf5 {[%clk 0:01:58.8]} 21... Nxe6 {[%clk 0:02:05.9]} 22. Na4
{[%clk 0:01:52.7]} 22... Bxb2 {[%clk 0:01:50.5]} 23. Nxb2 {[%clk 0:01:51.7]}
23... g6 {[%clk 0:01:46.5]} 24. Bh3 {[%clk 0:01:48.3]} 24... Qc6 {[%clk
0:01:46.2]} 25. Nc4 {[%clk 0:01:32.7]} 25... Nc5 {[%clk 0:01:41.3]} 26. Qd4+
{[%clk 0:01:31.3]} 26... Kg8 {[%clk 0:01:40.8]} 27. Ne3 {[%clk 0:01:30.5]} 27...
Qe4 {[%clk 0:01:39]} 28. Qd2 {[%clk 0:01:29.1]} 28... Qe7 {[%clk 0:00:54.1]} 29.
Nd5 {[%clk 0:01:12.2]} 29... Qd8 {[%clk 0:00:53.5]} 30. Rxe8+ {[%clk 0:01:08]}
30... Bxe8 {[%clk 0:00:53.4]} 31. Qd4 {[%clk 0:01:02.6]} 31... Nd7 {[%clk
0:00:38.6]} 32. Re1 {[%clk 0:00:58.9]} 32... c6 {[%clk 0:00:28.6]} 33. Re7
{[%clk 0:00:52.4]} 33... Bf7 {[%clk 0:00:12.4]} 34. Rxd7 {[%clk 0:00:50.1]}
34... cxd5 {[%clk 0:00:10.5]} 35. Rxd8+ {[%clk 0:00:48.3]} 35... Rxd8 {[%clk
0:00:10.3]} 36. Qf6 {[%clk 0:00:48.6]} 36... Re8 {[%clk 0:00:10.1]} 37. Qxd6
{[%clk 0:00:47.7]} 37... a6 {[%clk 0:00:10.4]} 38. Qd7 {[%clk 0:00:46.3]} 38...
b5 {[%clk 0:00:08.9]} 39. f5 {[%clk 0:00:42.8]} 39... gxf5 {[%clk 0:00:07.7]}
40. Bxf5 {[%clk 0:00:42.2]} 40... Re1+ {[%clk 0:00:07.9]} 41. Kf2 {[%clk
0:00:41.6]} 41... Re8 {[%clk 0:00:08.1]} 42. g4 {[%clk 0:00:40.5]} 42... h6
{[%clk 0:00:08.1]} 43. h4 {[%clk 0:00:40.2]} 43... Re5 {[%clk 0:00:07.9]} 44.
Qc8+ {[%clk 0:00:38.2]} 44... Re8 {[%clk 0:00:08]} 45. Qxa6 {[%clk 0:00:37.9]}
45... d4 {[%clk 0:00:08.2]} 46. Qxb5 {[%clk 0:00:36.9]} 46... Rd8 {[%clk
0:00:08.6]} 47. Kg3 {[%clk 0:00:35.5]} 47... Rd5 {[%clk 0:00:08.6]} 48. Qb8+
{[%clk 0:00:33.9]} 48... Kg7 {[%clk 0:00:08.7]} 49. Kf4 {[%clk 0:00:34.2]} 49...
Rc5 {[%clk 0:00:08.9]} 50. Qd6 {[%clk 0:00:32.1]} 50... Rc3 {[%clk 0:00:06.2]}
51. Qxd4+ {[%clk 0:00:31.5]} 1-0

[Event "*** Titled Tuesday Blitz"]
[Site "Chess.com"]
[Date "2020.04.14"]
[Round "8"]
[White "mirochka"]
[Black "Everyfishknows"]
[Result "1-0"]
[WhiteElo "2260"]
[BlackElo "2332"]
[TimeControl "180+1"]
[EndTime "11:30:28 PDT"]
[Termination "mirochka won on time"]

1. e4 {[%clk 0:03:00.3]} 1... e5 {[%clk 0:02:59]} 2. Nf3 {[%clk 0:02:59.3]} 2...
Nc6 {[%clk 0:02:57]} 3. d4 {[%clk 0:02:59.6]} 3... exd4 {[%clk 0:02:55.6]} 4. c3
{[%clk 0:02:59.4]} 4... d5 {[%clk 0:02:54.1]} 5. exd5 {[%clk 0:02:58.5]} 5...
Qxd5 {[%clk 0:02:49.3]} 6. cxd4 {[%clk 0:02:58.9]} 6... Nf6 {[%clk 0:02:49]} 7.
Nc3 {[%clk 0:02:58.2]} 7... Bb4 {[%clk 0:02:48.5]} 8. Be2 {[%clk 0:02:57.1]}
8... O-O {[%clk 0:02:46.7]} 9. O-O {[%clk 0:02:56.2]} 9... Qd8 {[%clk
0:02:33.5]} 10. Bg5 {[%clk 0:02:52.5]} 10... Be7 {[%clk 0:02:23.9]} 11. a3
{[%clk 0:02:18.1]} 11... h6 {[%clk 0:02:22.7]} 12. Bh4 {[%clk 0:02:15.7]} 12...
Bg4 {[%clk 0:02:10.5]} 13. Bg3 {[%clk 0:02:06.4]} 13... Bxf3 {[%clk 0:01:48.9]}
14. Bxf3 {[%clk 0:02:05.1]} 14... Nxd4 {[%clk 0:01:47.3]} 15. Bxb7 {[%clk
0:01:50.5]} 15... Rb8 {[%clk 0:01:45.2]} 16. Ba6 {[%clk 0:01:46.7]} 16... Rxb2
{[%clk 0:01:35.9]} 17. Re1 {[%clk 0:01:03.6]} 17... Nc2 {[%clk 0:00:56.9]} 18.
Qc1 {[%clk 0:00:57.4]} 18... Nxe1 {[%clk 0:00:50]} 19. Qxb2 {[%clk 0:00:56.2]}
19... Nd3 {[%clk 0:00:47.4]} 20. Qc2 {[%clk 0:00:51]} 20... Nc5 {[%clk
0:00:45.6]} 21. Rd1 {[%clk 0:00:43.1]} 21... Bd6 {[%clk 0:00:40.8]} 22. Bc4
{[%clk 0:00:39]} 22... Qe7 {[%clk 0:00:32.6]} 23. Bh4 {[%clk 0:00:35.6]} 23...
g5 {[%clk 0:00:31]} 24. Qg6+ {[%clk 0:00:29.3]} 24... Kh8 {[%clk 0:00:23.8]} 25.
Qxh6+ {[%clk 0:00:28.5]} 25... Nh7 {[%clk 0:00:24.4]} 26. Nd5 {[%clk 0:00:19.9]}
26... Qe6 {[%clk 0:00:16.9]} 27. Bxg5 {[%clk 0:00:19.9]} 27... Qxh6 {[%clk
0:00:12.7]} 28. Bxh6 {[%clk 0:00:19.8]} 28... Re8 {[%clk 0:00:13.6]} 29. Kf1
{[%clk 0:00:18.3]} 29... c6 {[%clk 0:00:11.7]} 30. Nf6 {[%clk 0:00:17.6]} 30...
Nxf6 {[%clk 0:00:10.3]} 31. Rxd6 {[%clk 0:00:15.9]} 31... Ng4 {[%clk 0:00:08.7]}
32. Rxc6 {[%clk 0:00:13.3]} 32... Nxh2+ {[%clk 0:00:06.5]} 33. Kg1 {[%clk
0:00:12.8]} 33... Ng4 {[%clk 0:00:07.4]} 34. g3 {[%clk 0:00:11.9]} 34... Nxh6
{[%clk 0:00:04.7]} 35. Rxh6+ {[%clk 0:00:12]} 35... Kg7 {[%clk 0:00:05]} 36. Rc6
{[%clk 0:00:12.1]} 36... Re5 {[%clk 0:00:01.4]} 37. Rc7 {[%clk 0:00:11.6]} 37...
Re1+ {[%clk 0:00:01.6]} 38. Kg2 {[%clk 0:00:10.9]} 38... Na4 {[%clk 0:00:02.4]}
39. Rxf7+ {[%clk 0:00:09.7]} 39... Kg6 {[%clk 0:00:02.5]} 40. Rxa7 {[%clk
0:00:10]} 40... Nc3 {[%clk 0:00:02.8]} 41. a4 {[%clk 0:00:09.3]} 41... Rc1
{[%clk 0:00:03.3]} 42. Bd3+ {[%clk 0:00:08.9]} 42... Kf6 {[%clk 0:00:03]} 43. a5
{[%clk 0:00:09.5]} 43... Nd1 {[%clk 0:00:03.1]} 44. a6 {[%clk 0:00:09.8]} 44...
Rc3 {[%clk 0:00:03.5]} 45. Be4 {[%clk 0:00:09.1]} 45... Ra3 {[%clk 0:00:03.7]}
46. Ra8 {[%clk 0:00:07.9]} 46... Ra2 {[%clk 0:00:02.5]} 47. Rf8+ {[%clk
0:00:06.1]} 47... Kg7 {[%clk 0:00:02.5]} 48. Rd8 {[%clk 0:00:04.1]} 48... Rxf2+
{[%clk 0:00:02.5]} 49. Kh3 {[%clk 0:00:03.7]} 49... Ra2 {[%clk 0:00:02.3]} 50.
Bb7 {[%clk 0:00:02.5]} 1-0